bitfinex-derivatives/quotes_SOLF0:USTF0_20241012
["timestamp","ask_amount","ask_price","bid_price","bid_amount"]
[1728773166982,8.38,147.1,147.08,3.3998]
[1728773168877,8.38,147.09,147.08,3.3998]
[1728773172290,8.38,147.1,147.08,3.3998]
[1728773174488,4.83992,147.11,147.08,3.3998]
[1728773174683,13.21992,147.11,147.08,3.3998]
[1728773176281,11.7798,147.09,147.07,3.4002]
[1728773176483,8.38,147.09,147.07,3.4002]
[1728773178890,11.7798,147.09,147.02,3.4012]
[1728773179085,8.38,147.08,147.02,8.38]
[1728773180494,8.38,147.08,147.05,3.4005]
[1728773184495,3.3998,147.09,147.06,3.4004]
[1728773184793,11.7798,147.09,147.06,3.4004]
[1728773188300,8.38,147.08,147.05,3.4005]
[1728773192511,8.38,147.08,147.02,8.38]
[1728773192710,8.38,147.08,147.06,3.4003]
[1728773193917,8.38,147.08,147.05,3.4006]
[1728773194408,11.7799,147.09,147.06,3.4004]
[1728773194604,8.38,147.09,147.06,3.4004]
[1728773194801,1.3598,147.1,147.03,8.38]
[1728773195108,8.38,147.09,147.06,3.4002]
[1728773196714,4.7594,147.1,147.06,3.4002]
[1728773196913,8.38,147.09,147.06,3.4002]
[1728773199015,8.38,147.09,147.07,3.4001]
[1728773209516,11.7798,147.09,147.06,3.4003]
[1728773210125,8.38,147.08,147.06,3.4003]
[1728773210429,8.38,147.07,147.04,3.4007]
[1728773210927,11.7806,147.06,147.02,3.4012]
[1728773211123,8.38,147.05,147.02,3.4012]
[1728773211422,8.38,147.05,146.99,8.50502]
[1728773211625,11.7807,147.05,147.01,3.4014]
[1728773214525,8.38,147.05,147.02,3.4012]
[1728773215330,8.38,147.05,147.01,8.38]
[1728773215626,11.7808,147.05,147.01,3.4015]
[1728773215926,8.38,147.05,147.01,3.4015]
[1728773216128,8.38,147.03,147.01,3.4015]
[1728773216830,11.7811,147.03,147.0,3.4017]
[1728773217926,8.38,147.03,147.0,3.4017]
[1728773218325,8.38,147.02,147.0,3.4017]
[1728773224532,8.38,147.03,147.0,3.4017]
[1728773225239,8.38,147.03,146.99,0.12502]
[1728773225437,4.8115,147.05,147.01,3.4015]
[1728773225739,8.38,147.04,147.01,3.4015]
[1728773226839,1.4107,147.05,147.01,8.38]
[1728773227041,1.3977,147.06,147.03,8.38]
[1728773227337,91.43982727,147.07,147.03,8.38]
[1728773227638,91.43982727,147.07,147.04,3.4008]
[1728773228034,91.43982727,147.07,147.01,8.38]
[1728773228336,94.84012727,147.07,147.03,3.401]
[1728773228733,8.38,147.06,147.04,3.4009]
[1728773229336,83.05982727,147.07,147.03,8.38]
[1728773229535,83.05982727,147.07,147.04,8.38]
[1728773229962,83.05982727,147.07,147.05,3.4004]
[1728773230435,83.05982727,147.07,147.04,8.38]
[1728773230941,83.05982727,147.07,147.05,3.4007]
[1728773239441,83.05982727,147.07,147.06,3.4004]
[1728773244848,83.05982727,147.07,147.05,3.4006]
[1728773254356,83.05982727,147.07,147.04,3.4008]
[1728773254550,8.38,147.06,146.99,0.12502]
[1728773254758,8.38,147.06,147.01,8.38]
[1728773254953,8.38,147.06,147.03,3.4009]
[1728773259558,8.38,147.06,147.04,3.4009]
[1728773260357,83.05982727,147.07,147.05,3.4005]
[1728773260554,83.05982727,147.07,147.04,8.38]
[1728773260954,83.05982727,147.07,147.06,3.4004]
[1728773261854,11.7797,147.09,147.06,3.4004]
[1728773262349,8.38,147.09,147.06,3.4004]
[1728773263458,4.1731,147.1,147.08,3.3999]
[1728773263758,4.1731,147.1,147.05,8.38]
[1728773264661,8.38,147.08,147.03,8.38]
[1728773265357,8.38,147.08,147.05,3.4004]
[1728773265556,8.38,147.08,147.03,8.38]
[1728773266260,8.38,147.08,147.06,3.4004]
[1728773271968,8.38,147.08,147.03,8.38]
[1728773273369,8.38,147.08,147.07,3.4002]
[1728773274569,8.38,147.09,147.08,3.4]
[1728773274870,4.1731,147.1,147.08,3.4]
[1728773275081,12.5531,147.1,147.08,3.4]
[1728773275270,8.38,147.09,147.07,3.4001]
[1728773275666,4.1731,147.1,147.07,3.4001]
[1728773275866,8.38,147.09,147.07,3.4001]
[1728773280971,4.1731,147.1,147.07,3.4001]
[1728773281171,8.38,147.09,147.07,3.4001]
[1728773284474,8.38,147.09,147.08,3.4]
[1728773289579,2.832,147.1,147.05,11.74494594]
[1728773289779,2.832,147.1,147.07,8.38]
[1728773290277,2.832,147.1,147.08,3.3998]
[1728773296580,0.12502,147.11,147.08,8.38]
[1728773296786,0.12502,147.11,147.1,11.7795]
[1728773297179,0.12502,147.11,147.1,3.3995]
[1728773297386,0.12502,147.11,147.09,3.3996]
[1728773298284,0.12502,147.11,147.1,3.3995]
[1728773305391,8.50502,147.11,147.07,3.4001]
[1728773305592,8.50502,147.11,147.0,7.0531]
[1728773305790,8.50502,147.11,147.06,8.38]
[1728773306487,8.50502,147.11,147.08,3.3998]
[1728773308093,0.12502,147.11,147.08,8.38]
[1728773308293,0.12502,147.11,147.09,3.3997]
[1728773309390,0.12502,147.11,147.08,8.38]
[1728773310396,0.12502,147.11,147.1,3.3995]
[1728773314799,0.12502,147.11,147.05,3.32188212]
[1728773314997,0.12502,147.11,147.07,8.38]
[1728773315197,0.12502,147.11,147.07,11.80443891]
[1728773315598,0.12502,147.11,147.1,3.3995]
[1728773326210,0.12502,147.11,147.1,11.7795]
[1728773327806,11.90302,147.17,147.14,3.3985]
[1728773328509,3.52302,147.17,147.14,3.3985]
[1728773328710,11.90302,147.17,147.14,3.3985]
[1728773329511,0.12502,147.17,147.14,3.3985]
[1728773329716,8.50502,147.17,147.15,3.3983]
[1728773330109,8.50502,147.17,147.12,8.38]
[1728773330309,8.50502,147.17,147.14,3.3984]
[1728773330706,8.38,147.16,147.11,11.69711812]
[1728773330917,11.7781,147.16,147.13,3.3987]
[1728773331514,8.38,147.15,147.13,3.3987]
[1728773334118,11.7781,147.16,147.13,3.3987]
[1728773334622,3.3981,147.16,147.13,3.3987]
[1728773334823,11.7781,147.16,147.13,3.3987]
[1728773336512,8.38,147.16,147.13,3.3987]
[1728773336712,11.90302,147.17,147.13,3.3987]
[1728773340820,8.50502,147.17,147.05,0.37392]
[1728773341018,3.3985,147.15,147.12,3.399]
[1728773342019,9.7699,147.16,147.11,8.38]
[1728773342324,3.3986,147.14,147.1,3.3994]
[1728773342513,3.3986,147.14,147.09,8.38]
[1728773342714,3.3986,147.14,147.1,3.3994]
[1728773344324,11.7788,147.13,147.09,3.3996]
[1728773344923,11.7788,147.13,147.1,3.3995]
[1728773345230,1.3768,147.15,147.1,8.38]
[1728773345231,13.1553,147.15,147.1,8.38]
[1728773345622,13.1553,147.15,147.11,3.3991]
[1728773346027,13.1553,147.15,147.11,8.38]
[1728773346229,4.7753,147.15,147.11,3.3991]
[1728773346627,13.1553,147.15,147.11,3.3991]
[1728773347324,9.7568,147.15,147.11,3.3991]
[1728773347530,3.3987,147.14,147.11,3.3991]
[1728773348540,4.7752,147.15,147.11,3.3991]
[1728773348824,13.1552,147.15,147.11,3.3991]
[1728773350233,4.7752,147.15,147.11,3.3991]
[1728773350433,4.7752,147.15,147.11,11.7791]
[1728773350627,1.3768,147.15,147.13,3.3986]
[1728773350829,1.3768,147.15,147.11,8.38]
[1728773351740,4.7752,147.15,147.11,11.7791]
[1728773354346,4.7752,147.15,147.12,3.399]
[1728773354635,1.3768,147.15,147.12,8.38]
[1728773355044,1.3768,147.15,147.12,11.7789]
[1728773357946,1.3768,147.15,147.13,3.3987]
[1728773358846,1.3768,147.15,147.14,3.3986]
[1728773362850,1.3768,147.15,147.11,8.38]
[1728773363070,1.3768,147.15,147.13,3.3987]
[1728773363251,1.3768,147.15,147.09,8.38]
[1728773363550,8.38,147.14,147.09,8.38]
[1728773364349,8.38,147.14,147.11,3.399]
[1728773365750,13.1553,147.15,147.11,3.399]
[1728773366051,13.1553,147.15,147.11,3.3991]
[1728773366242,13.1553,147.15,147.09,8.38]
[1728773367447,13.1553,147.15,147.12,3.399]
[1728773367956,13.1553,147.15,147.11,3.3991]
[1728773373459,4.7753,147.15,147.11,11.7791]
[1728773373650,13.1553,147.15,147.11,11.7791]
[1728773374051,13.1553,147.15,147.11,3.3991]
[1728773374655,8.38,147.13,147.07,3.46768854]
[1728773374960,8.38,147.13,147.05,0.12502]
[1728773375261,8.38,147.13,147.07,8.38]
[1728773375453,3.3991,147.12,147.07,8.38]
[1728773376457,3.3991,147.12,147.09,3.3997]
[1728773376856,11.7789,147.13,147.09,3.3997]
[1728773378553,3.3987,147.14,147.1,11.7793]
[1728773378752,11.7787,147.14,147.1,11.7793]
[1728773380958,8.38,147.14,147.11,3.3991]
[1728773387664,4.7752,147.15,147.11,3.3991]
[1728773387962,13.1552,147.15,147.11,3.3991]
[1728773388156,13.1552,147.15,147.13,3.3988]
[1728773388157,1.3768,147.15,147.13,3.3988]
[1728773391563,1.3899,147.16,147.11,8.38]
[1728773391755,1.3899,147.16,147.14,3.3985]
[1728773393165,13.1681,147.16,147.14,3.3985]
[1728773393662,9.7699,147.16,147.14,3.3985]
[1728773394464,9.7699,147.16,147.15,3.3984]
[1728773395870,9.7699,147.16,147.14,3.3984]
[1728773397164,9.7699,147.16,147.11,8.38]
[1728773397566,9.7699,147.16,147.07,3.32221427]
[1728773397760,13.168,147.16,147.13,3.3987]
[1728773397965,13.168,147.16,147.11,11.74879367]
[1728773398168,9.7699,147.16,147.11,11.74879367]
[1728773398565,13.1681,147.16,147.11,11.74879367]
[1728773399271,13.1681,147.16,147.13,3.3987]
[1728773399865,9.7699,147.16,147.06,2.6391]
[1728773400165,11.7787,147.14,147.11,3.3992]
[1728773400971,8.38,147.14,147.09,8.38]
[1728773401172,3.3989,147.13,147.1,3.3995]
[1728773402978,11.7787,147.14,147.1,3.3995]
[1728773403166,8.38,147.14,147.1,3.3995]
[1728773404364,3.3988,147.13,147.1,3.3995]
[1728773407775,11.7785,147.15,147.11,3.3992]
[1728773408075,11.7785,147.15,147.1,8.38]
[1728773408369,8.38,147.15,147.12,3.399]
[1728773408672,2.8201,147.16,147.11,8.38]
[1728773408875,6.2184,147.16,147.12,3.3989]
[1728773409370,6.2184,147.16,147.13,3.3988]
[1728773411179,3.3984,147.15,147.11,8.38]
[1728773411372,3.3984,147.15,147.12,3.3989]
[1728773412573,8.38,147.15,147.06,2.6391]
[1728773412773,11.7787,147.14,147.11,3.3992]
[1728773413871,3.3987,147.14,147.11,3.3992]
[1728773414778,3.3988,147.13,147.1,11.7793]
[1728773415178,8.38,147.14,147.1,11.7793]
[1728773415480,11.7787,147.14,147.1,11.7793]
[1728773415673,11.7787,147.14,147.11,3.3992]
[1728773420479,3.3987,147.14,147.11,3.3992]
[1728773422382,3.3987,147.14,147.11,11.7792]
[1728773422684,3.3985,147.15,147.11,8.38]
[1728773422888,3.3985,147.15,147.12,3.399]
[1728773423581,6.2184,147.16,147.13,3.3988]
[1728773423976,3.3985,147.15,147.12,3.399]
[1728773424587,2.8201,147.16,147.12,8.38]
[1728773424782,0.12502,147.17,147.14,8.38]
[1728773426399,0.12502,147.17,147.15,3.3982]
[1728773427288,0.12502,147.17,147.16,3.3981]
[1728773428788,8.50502,147.17,147.13,8.38]
[1728773428988,11.90312,147.17,147.13,8.38]
[1728773429985,3.52312,147.17,147.13,8.38]
[1728773430790,3.3983,147.16,147.06,2.6391]
[1728773430991,3.3983,147.16,147.11,8.38]
[1728773430992,8.38,147.16,147.11,8.38]
[1728773431291,8.38,147.16,147.12,3.399]
[1728773431490,3.3984,147.15,147.12,3.399]
[1728773431892,11.7782,147.16,147.12,3.399]
[1728773432390,8.38,147.16,147.12,3.399]
[1728773432588,3.3985,147.15,147.11,11.7792]
[1728773433287,3.3981,147.16,147.13,11.7788]
[1728773433481,0.12502,147.17,147.13,11.7788]
[1728773433984,3.52302,147.17,147.13,11.7788]
[1728773435208,3.52302,147.17,147.13,8.38]
[1728773435382,3.52302,147.17,147.1,3.35066129]
[1728773435383,0.12502,147.17,147.14,8.38]
[1728773435586,0.12502,147.17,147.15,8.38]
[1728773436182,0.12502,147.17,147.16,3.3981]
[1728773442098,0.12502,147.17,147.14,8.38]
[1728773442296,0.12502,147.17,147.15,3.3982]
[1728773457111,0.12502,147.17,147.15,11.7782]
[1728773460314,0.12502,147.17,147.15,8.38]
[1728773460614,0.12502,147.17,147.16,3.3981]
[1728773461253,0.12502,147.17,147.15,8.38]
[1728773461254,0.12502,147.17,147.14,8.38]
[1728773461404,3.52292,147.17,147.14,8.38]
[1728773461907,3.52292,147.17,147.14,11.7786]
[1728773462107,0.12502,147.17,147.15,8.38]
[1728773463815,0.12502,147.17,147.16,3.3981]
[1728773469619,0.12502,147.17,147.15,3.3983]
[1728773483633,0.12502,147.17,147.15,3.3982]
[1728773487739,0.12502,147.17,147.14,8.38]
[1728773488041,0.12502,147.17,147.16,3.3981]
[1728773490337,0.12502,147.17,147.15,3.3983]
[1728773491238,3.3982,147.16,147.13,3.3987]
[1728773491444,3.3982,147.16,147.11,8.38]
[1728773492141,3.3982,147.16,147.11,11.71502595]
[1728773493235,3.3982,147.16,147.11,8.38]
[1728773493436,3.3982,147.16,147.13,3.3988]
[1728773494441,11.90302,147.17,147.13,3.3988]
[1728773495034,3.3981,147.16,147.13,3.3988]
[1728773498042,0.12502,147.17,147.14,3.3984]
[1728773498339,0.12502,147.17,147.13,8.38]
[1728773498733,0.12502,147.17,147.15,8.38]
[1728773499333,0.12502,147.17,147.16,3.3981]
[1728773502545,8.50502,147.17,146.99,6.92802]
[1728773502846,8.38,147.13,147.08,8.38]
[1728773503044,8.38,147.13,147.08,11.73122539]
[1728773503351,8.38,147.13,147.09,3.3995]
[1728773503652,8.38,147.13,147.08,8.38]
[1728773504347,8.38,147.13,147.1,3.3995]
[1728773505550,11.7787,147.14,147.1,3.3995]
[1728773508554,11.7787,147.14,147.11,3.3992]
[1728773509456,11.7787,147.14,147.09,8.38]
[1728773509654,11.7787,147.14,147.1,3.3994]
[1728773509953,2.6444,147.16,147.1,3.3994]
[1728773510148,11.779,147.13,147.09,3.3997]
[1728773523077,11.779,147.13,147.08,8.38]
[1728773523078,8.38,147.11,147.06,1.3917]
[1728773523375,8.38,147.11,147.06,8.38]
[1728773523569,11.7791,147.12,147.08,3.3998]
[1728773527976,3.3991,147.12,147.08,3.3998]
[1728773528483,3.3991,147.12,147.07,8.38]
[1728773528676,3.3991,147.12,147.09,3.3997]
[1728773531287,8.38,147.13,147.07,8.38]
[1728773531590,11.7793,147.11,147.08,3.3999]
[1728773538992,3.3993,147.11,147.08,3.3999]
[1728773539187,1.3681,147.15,147.09,3.3997]
[1728773539388,1.3681,147.15,147.08,8.38]
[1728773539585,8.38,147.13,147.08,8.38]
[1728773539784,3.399,147.13,147.09,3.3996]
[1728773539987,1.3681,147.15,147.08,8.38]
[1728773540189,8.38,147.13,147.08,8.38]
[1728773540490,11.7789,147.13,147.1,3.3994]
[1728773540691,1.3681,147.15,147.1,3.3994]
[1728773540891,3.3986,147.14,147.11,3.3992]
[1728773541084,8.38,147.13,147.08,8.38]
[1728773541281,1.3681,147.15,147.09,8.38]
[1728773541594,8.38,147.14,147.09,8.38]
[1728773541986,2.6444,147.16,147.1,8.38]
[1728773542205,2.6444,147.16,147.07,1.3854]
[1728773542491,11.0244,147.16,147.11,8.38]
[1728773543193,3.3984,147.15,147.09,8.38]
[1728773543382,11.7784,147.15,147.09,8.38]
[1728773543785,8.38,147.14,147.07,1.3854]
[1728773543990,8.38,147.14,147.08,8.38]
[1728773544785,11.7787,147.14,147.08,8.38]
[1728773544990,11.7787,147.14,147.09,3.3996]
[1728773545392,11.7787,147.14,147.08,8.38]
[1728773545593,11.7787,147.14,147.1,3.3995]
[1728773547991,3.3988,147.13,147.1,3.3995]
[1728773548492,11.7786,147.14,147.1,3.3995]
[1728773549400,3.3988,147.13,147.09,3.3997]
[1728773550296,11.7787,147.14,147.1,3.3995]
[1728773552894,8.38,147.14,147.1,3.3995]
[1728773553906,11.7787,147.14,147.1,3.3995]
[1728773554907,8.38,147.12,147.09,3.3997]
[1728773555903,3.9642,147.16,147.06,3.32074015]
[1728773556107,8.38,147.12,147.09,3.3997]
[1728773557111,8.38,147.12,147.07,8.38]
[1728773557705,8.38,147.12,147.09,3.3996]
[1728773558409,8.38,147.12,147.07,8.38]
[1728773558605,8.38,147.12,147.1,3.3995]
[1728773559809,11.7791,147.12,147.07,3.4]
[1728773560003,3.9642,147.16,147.08,8.38]
[1728773560199,8.38,147.14,147.08,8.38]
[1728773560736,8.38,147.13,147.1,3.3994]
[1728773561210,8.38,147.13,147.08,8.38]
[1728773561411,11.7789,147.13,147.09,3.3997]
[1728773563311,8.38,147.13,147.1,3.3995]
[1728773563512,8.38,147.15,147.08,8.38]
[1728773564205,8.38,147.15,147.1,3.3995]
[1728773564206,3.3986,147.14,147.1,3.3995]
[1728773564809,8.38,147.13,147.1,3.3995]
[1728773565607,8.38,147.15,147.08,8.38]
[1728773565909,11.7784,147.15,147.11,3.3992]
[1728773566609,3.3986,147.14,147.11,3.3992]
[1728773568512,11.7784,147.15,147.12,3.399]
[1728773569513,3.3984,147.15,147.12,3.399]
[1728773569713,8.38,147.14,147.12,3.399]
[1728773575117,11.7786,147.14,147.12,3.399]
[1728773575419,8.38,147.14,147.12,3.399]
[1728773578419,3.9642,147.16,147.1,8.38]
[1728773578618,8.38,147.15,147.13,3.3987]
[1728773580618,11.7784,147.15,147.13,3.3987]
[1728773581713,3.3984,147.15,147.13,3.3987]
[1728773581917,11.7784,147.15,147.13,3.3987]
[1728773583927,2.6444,147.16,147.13,3.3987]
[1728773584128,8.38,147.15,147.13,3.3987]
[1728773585429,11.7785,147.15,147.12,3.399]
[1728773590438,8.38,147.15,147.1,8.38]
[1728773591544,2.6444,147.16,147.11,8.38]
[1728773591842,11.0244,147.16,147.11,8.38]
[1728773592630,14.4225,147.16,147.13,3.3987]
[1728773593442,2.6444,147.16,147.14,3.3985]
[1728773593742,92.7399042,147.17,147.14,3.3985]
[1728773600042,3.3982,147.16,147.13,3.3987]
[1728773600547,8.38,147.15,147.13,3.3987]
[1728773605149,11.7785,147.15,147.11,3.3991]
[1728773606047,8.38,147.15,147.11,3.3991]
[1728773606348,3.3987,147.14,147.11,3.3991]
[1728773607151,8.38,147.15,147.11,3.3991]
[1728773607344,11.7785,147.15,147.11,3.3991]
[1728773608549,11.7785,147.15,147.11,11.7791]
[1728773616563,11.7785,147.15,147.12,3.399]
[1728773616860,0.12502,147.17,147.12,8.38]
[1728773617063,0.12502,147.17,147.15,3.3982]
[1728773617252,0.12502,147.17,147.16,8.38]
[1728773618561,0.12502,147.17,147.16,11.7781]
[1728773625355,1e-08,147.17,147.16,11.7781]
[1728773626368,1e-08,147.17,147.16,3.3981]
[1728773626568,1e-08,147.17,147.16,11.7781]
[1728773626760,1e-08,147.17,147.16,15.11652419]
[1728773627161,1e-08,147.17,147.16,3.3981]
[1728773634572,1e-08,147.17,147.12,2.499]
[1728773635072,1e-08,147.17,147.12,8.38]
[1728773635869,1e-08,147.17,147.14,8.38]
[1728773636169,1e-08,147.17,147.15,3.3982]
[1728773638464,1e-08,147.17,147.14,8.38]
[1728773638774,1e-08,147.17,147.15,3.3982]
[1728773640780,1e-08,147.17,147.16,3.3981]
[1728773642474,1e-08,147.17,147.15,3.3983]
[1728773642675,8.38000001,147.17,147.11,0.12501999]
[1728773643183,11.77790001,147.17,147.13,3.3987]
[1728773643674,11.77790001,147.17,147.12,8.38]
[1728773644076,11.77790001,147.17,147.13,3.3988]
[1728773646684,8.38,147.15,147.12,3.399]
[1728773646877,8.38,147.15,147.11,8.50501999]
[1728773647381,11.7784,147.15,147.12,3.399]
[1728773648783,11.7784,147.15,147.11,11.90411999]
[1728773649577,8.38,147.15,147.12,3.399]
[1728773650479,3.3982,147.16,147.12,3.399]
[1728773650683,11.7782,147.16,147.13,3.3988]
[1728773650880,11.7782,147.16,147.11,0.12501999]
[1728773651085,11.7782,147.16,147.11,8.50501999]
[1728773651291,11.7782,147.16,147.12,3.3989]
[1728773657592,3.3984,147.15,147.12,3.3989]
[1728773657789,11.7784,147.15,147.12,3.3989]
[1728773658393,11.7784,147.15,147.11,3.52421999]
[1728773659993,11.7788,147.14,147.11,3.52421999]
[1728773660300,8.38,147.12,147.11,0.12501999]
[1728773661494,3.3989,147.13,147.11,0.12501999]
[1728773663097,13.1214,147.14,147.11,3.52431999]
[1728773663803,1.3427,147.14,147.11,3.52431999]
[1728773667205,1.3427,147.14,147.11,0.12501999]
[1728773668004,1.3427,147.14,147.12,3.3989]
[1728773670907,1.3427,147.14,147.12,3.399]
[1728773671308,1.3427,147.14,147.11,0.12501999]
[1728773672009,1.3427,147.14,147.12,3.399]
[1728773680724,1.3427,147.14,147.11,0.12501999]
[1728773681015,13.1214,147.14,147.11,3.52411999]
[1728773686720,13.1214,147.14,147.11,0.12501999]
[1728773688624,3.3988,147.13,147.11,0.12501999]
[1728773688921,8.38,147.12,147.11,0.12501999]
[1728773689221,11.779,147.13,147.11,0.12501999]
[1728773699525,3.399,147.13,147.11,0.12501999]
[1728773701928,9.7227,147.14,147.11,0.12501999]
[1728773702227,3.399,147.12,147.11,0.12501999]
[1728773702529,3.399,147.12,147.08,8.38]
[1728773702530,3.3996,147.1,147.07,3.4001]
[1728773702718,8.38,147.09,147.05,8.50502]
[1728773703518,11.7799,147.09,147.05,11.90552]
[1728773704327,3.3995,147.1,147.06,8.38]
[1728773704824,3.3998,147.09,147.06,3.4003]
[1728773706835,8.38,147.11,147.06,3.4003]
[1728773707125,3.3996,147.1,147.06,3.4003]
[1728773708931,8.38,147.1,147.06,3.4003]
[1728773709229,3.3998,147.09,147.06,3.4003]
[1728773709424,8.38,147.07,147.05,0.12502]
[1728773709625,11.7803,147.07,147.05,0.12502]
[1728773710028,8.38,147.07,147.05,0.12502]
[1728773710327,3.44009645,147.11,147.05,0.12502]
[1728773710328,11.7801,147.08,147.05,0.12502]
[1728773710828,8.38,147.08,147.05,0.12502]
[1728773711131,3.4002,147.07,147.05,0.12502]
[1728773711634,8.38,147.08,147.06,3.4004]
[1728773711822,3.3999,147.09,147.06,3.4004]
[1728773712824,3.4,147.08,147.06,3.4004]
[1728773714236,3.4002,147.07,147.05,0.12502]
[1728773716337,8.38,147.09,147.05,0.12502]
[1728773716537,3.4001,147.08,147.05,3.52562]
[1728773723649,3.4001,147.08,147.06,3.4004]
[1728773723847,3.3999,147.09,147.06,3.4004]
[1728773732252,11.7799,147.09,147.06,3.4004]
[1728773732949,11.7799,147.09,147.07,3.4001]
[1728773733157,3.3995,147.11,147.05,0.12502]
[1728773733355,8.38,147.11,147.05,0.12502]
[1728773733556,8.38,147.11,147.07,3.4001]
[1728773733755,3.3995,147.1,147.07,3.4001]
[1728773735462,8.38,147.09,147.07,3.4001]
[1728773738363,8.38,147.09,147.06,3.4003]
[1728773739362,11.7797,147.09,147.06,3.4003]
[1728773741573,3.4,147.08,147.05,3.52562]
[1728773743472,11.7798,147.09,147.05,3.52562]
[1728773744469,11.7798,147.09,147.06,3.4004]
[1728773746374,3.3998,147.09,147.06,3.4004]
[1728773748974,8.38,147.11,147.07,3.4]
[1728773749870,8.38,147.11,147.05,8.50502]
[1728773749871,81.93313914,147.13,147.06,8.38]
[1728773750176,90.31313914,147.13,147.09,3.3996]
[1728773750475,3.3992,147.12,147.09,3.3996]
[1728773751870,11.7792,147.12,147.09,3.3996]
[1728773752973,3.3993,147.11,147.09,3.3996]
[1728773753173,11.7793,147.11,147.08,3.3999]
[1728773757375,3.3993,147.11,147.08,3.3999]
[1728773757591,3.3993,147.11,147.09,3.3997]
[1728773764684,3.3993,147.11,147.06,8.38]
[1728773764877,3.3993,147.11,147.08,3.3998]
[1728773766584,80.52633914,147.13,147.08,8.38]
[1728773766878,79.23123914,147.13,147.09,8.38]
[1728773767581,82.63013914,147.13,147.1,3.3993]
[1728773767772,79.23123914,147.13,147.09,8.38]
[1728773769488,82.63013914,147.13,147.1,3.3994]
[1728773769881,79.23123914,147.13,147.09,8.38]
[1728773770079,91.01023914,147.13,147.08,8.38]
[1728773770882,11.779,147.13,147.08,8.38]
[1728773771588,11.779,147.13,147.09,3.3996]
[1728773772684,3.3991,147.12,147.09,3.3996]
[1728773775185,3.3994,147.11,147.08,3.3999]
[1728773775581,8.38,147.12,147.06,1.3288]
[1728773775893,3.3995,147.1,147.07,3.4001]
[1728773777291,3.3994,147.11,147.08,3.4]
[1728773778494,3.3991,147.12,147.08,3.4]
[1728773778695,3.3991,147.12,147.07,8.38]
[1728773778894,3.3991,147.12,147.09,3.3997]
[1728773779907,11.779,147.13,147.09,3.3997]
[1728773781596,3.399,147.13,147.09,8.38]
[1728773781798,3.399,147.13,147.1,3.3994]
[1728773785700,9.7227,147.14,147.09,8.38]
[1728773785890,9.7227,147.14,147.1,8.38]
[1728773786590,9.7227,147.14,147.11,3.3991]
[1728773789302,13.1213,147.14,147.11,3.3991]
[1728773796811,1.3427,147.14,147.11,3.3991]
[1728773797004,3.399,147.13,147.1,3.3994]
[1728773800505,3.399,147.13,147.07,8.38]
[1728773802430,3.399,147.13,147.1,3.3994]
[1728773808920,4.7414,147.14,147.11,3.3992]
[1728773809113,9.7227,147.14,147.11,3.3992]
[1728773809614,1.3427,147.14,147.09,8.38]
[1728773810248,4.7413,147.14,147.11,3.3991]
[1728773810818,4.7413,147.14,147.12,3.399]